{"text_format":"3","workbook":"xlsx","n_sheets":1,"sheets":["Sheet1"],"read":"whole","date_system":"1900"}

{"sheet":"Sheet1","index":0,"n_rows":45,"n_cols":4,"rows_kept":45}
["20-232-ITB MISSION CRITICAL INFRASTRUCTURE MAINTENANCE & REPAIR SERVICES"]
["ATTACHMENT A - PRICING SHEET"]
[]
["Table A - Maintenence Costs:",null,null,"Annual Price"]
["Emergency Call Center (ECC)- Courts/Police Facility",null,null,0]
["Bozman Center Network Operations Center (NOC) & Data Units AND Fire Alarm",null,null,0]
["Lee Pumping Station (OEM Radio Site)",null,null,0]
["BB&T Building OEM Radio Site",null,null,0]
["Court House Plaza II Radio System Master Site (OEM Radio Site)",null,null,0]
["Shirlington Tower (Penthouse Equipment Room OEM Radio Site)",null,null,0]
["Ballston Archstone Place Apartments (OEM Radio Site)",null,null,0]
["Ritz Carlton (Penthouse Equipment Room (OEM Radio Site)",null,null,0]
["Trade Center Network Operations Center (NOC)",null,null,0]
["Emergency Call Center (ECC) Court Square West",null,null,0]
[]
["Total Annual Cost for Preventative Maintenance: ",null,"Total of Table A (Lines 5-14):",{"$f":"SUM(D5:D14)","v":0}]
[]
["Table B - Labor Rates:"]
["Personnel Type","Hourly Rate","Hour/year","Extended Price"]
["Project Manager rate",0,150,{"$f":"B20*C20","v":0}]
["HVAC Mechanic regular rate",0,450,{"$f":"B21*C21","v":0}]
["HVAC Mechanic OT",0,45,{"$f":"B22*C22","v":0}]
["HVAC Helper regular rate",0,450,0]
["HVAC Helper OT",0,45,0]
["Electrician regular rate",0,450,0]
["Electrician OT",0,45,0]
["Electrician Helper regular rate",0,450,0]
["Electrician Helper OT",0,45,0]
["Generator Technician regular rate",0,200,0]
["Generator Technician OT",0,20,0]
["Generator Technician Helper regular rate",0,200,0]
["Generator Technician Helper OT",0,20,0]
["UPS/PDU Technician regular rate",0,200,0]
["UPS/PDU Technician OT",0,20,0]
["Battery Technician regular rate",0,200,0]
["Battery Technician OT",0,20,0]
["Sprinkler Technician regular rate",0,100,0]
["Sprinkler Technician OT",0,20,0]
["Fire Alarm Technician regular rate",0,50,0]
["Fire Alarm Technician OT",0,10,0]
["Fire Protection Helper",0,20,0]
[]
[null,null,"Total of Table B (Lines 20-41):",{"$f":"SUM(D20:D41)","v":0}]
[]
[null,null,"GRAND TOTAL TABLES A & B (Line 16 + Line 43):",{"$f":"D43+D16","v":0}]